fUST/lending_fUST_20240225
["ID","MTS","AMOUNT","RATE_DAILY","PERIOD"]
[315117003,1708846243201,-300.0,0.00019921,2]
[315117005,1708846243214,-340.90772496,0.00019937,2]
[315117006,1708846243223,-265.86364405,0.0001999,2]
[315117008,1708846243232,-500.0,0.0002,2]
[315117010,1708846243241,-500.0,0.0002,2]
[315117012,1708846243252,-545.61,0.0002,2]
[315117014,1708846243261,-500.0,0.0002,2]
[315117016,1708846243271,-500.0,0.0002,2]
[315117017,1708846243281,-1098.75,0.0002,2]
[315117018,1708846243291,-500.0,0.0002,2]
[315117019,1708846243300,-708.0,0.0002,2]
[315117020,1708846243310,-500.0,0.0002,2]
[315117021,1708846243320,-500.0,0.0002,2]
[315117022,1708846243329,-500.0,0.0002,2]
[315117023,1708846243339,-500.0,0.0002,2]
[315117024,1708846243348,-1480.89,0.0002,2]
[315117025,1708846243358,-701.31,0.0002,2]
[315117026,1708846243367,-500.0,0.0002,2]
[315117027,1708846243377,-500.0,0.0002,2]
[315117028,1708846243386,-1392.61,0.0002,2]
[315117029,1708846243396,-586.74,0.0002,2]
[315117030,1708846243405,-775.55,0.0002,2]
[315117031,1708846243414,-812.22,0.0002,2]
[315117032,1708846243425,-4151.71,0.0002,2]
[315117033,1708846243434,-500.0,0.0002,2]
[315117034,1708846243443,-192.78319195,0.0002,2]
[315117035,1708846243452,-740.32,0.0002,2]
[315117036,1708846243462,-1036.71,0.0002,2]
[315117037,1708846243472,-836.24,0.0002,2]
[315117038,1708846243481,-938.67,0.0002,2]
[315117039,1708846243490,-246.48844815,0.0002,2]
[315117040,1708846243499,-912.87,0.0002,2]
[315117041,1708846243508,-500.0,0.0002,2]
[315117042,1708846243518,-916.25,0.0002,2]
[315117043,1708846243527,-1262.09,0.0002,2]
[315117044,1708846243536,-500.0,0.0002,2]
[315117045,1708846243545,-1459.21,0.0002,2]
[315117046,1708846243555,-6663.35,0.0002,2]
[315117047,1708846243566,-8901.53,0.0002,2]
[315117048,1708846243576,-500.0,0.0002,2]
[315117049,1708846243586,-1253.96,0.0002,2]
[315117050,1708846243595,-500.0,0.0002,2]
[315117051,1708846243605,-467.99466473,0.0002,2]
[315117052,1708846243615,-500.0,0.0002,2]
[315117053,1708846243625,-500.0,0.0002,2]
[315117054,1708846243634,-315.17,0.0002,2]
[315117055,1708846243644,-4526.14,0.0002,2]
[315117056,1708846243653,-572.47,0.0002,2]
[315117057,1708846243663,-616.67,0.0002,2]
[315117058,1708846243672,-500.0,0.0002,2]
[315117059,1708846243682,-1915.02,0.0002,2]
[315117060,1708846243692,-500.0,0.0002,2]
[315117061,1708846243701,-2739.02,0.0002,2]
[315117062,1708846243711,-166.666666,0.00020076,2]
[315117063,1708846243721,-175.5,0.000201,2]
[315117064,1708846243731,-300.0,0.00020118,2]
[315117065,1708846243741,-336.14592556,0.00020172,2]
[315117066,1708846243750,-479.77093156,0.00020172,2]
[315117067,1708846243759,-155.24646952,0.00020173,2]
[315117068,1708846243768,-340.90772496,0.00020229,2]
[315117069,1708846243777,-500.0,0.00020273,2]
[315117070,1708846243786,-500.0,0.00020273,2]
[315117071,1708846243795,-545.61,0.00020273,2]
[315117072,1708846243804,-500.0,0.00020273,2]
[315117073,1708846243814,-1098.75,0.00020273,2]
[315117074,1708846243823,-500.0,0.00020273,2]
[315117075,1708846243832,-708.0,0.00020273,2]
[315117076,1708846243842,-500.0,0.00020273,2]
[315117077,1708846243851,-500.0,0.00020273,2]
[315117078,1708846243860,-500.0,0.00020273,2]
[315117079,1708846243869,-500.0,0.00020273,2]
[315117080,1708846243878,-1480.89,0.00020273,2]
[315117081,1708846243887,-701.31,0.00020273,2]
[315117082,1708846243896,-500.0,0.00020273,2]
[315117083,1708846243904,-590.86804832,0.00020273,2]
[315117084,1708846243914,-1392.61,0.00020273,2]
[315117085,1708846243923,-775.55,0.00020273,2]
[315117086,1708846243932,-812.22,0.00020273,2]
[315117087,1708846243941,-4151.71,0.00020273,2]
[315117088,1708846243950,-500.0,0.00020273,2]
[315117089,1708846243959,-740.32,0.00020273,2]
[315117090,1708846243969,-1036.71,0.00020273,2]
[315117091,1708846243979,-836.24,0.00020273,2]
[315117092,1708846243988,-938.67,0.00020273,2]
[315117093,1708846243998,-912.87,0.00020273,2]
[315117094,1708846244007,-500.0,0.00020273,2]
[315117095,1708846244016,-916.25,0.00020273,2]
[315117096,1708846244025,-1262.09,0.00020273,2]
[315117097,1708846244035,-500.0,0.00020273,2]
[315117098,1708846244044,-1459.21,0.00020273,2]
[315117099,1708846244053,-6663.35,0.00020273,2]
[315117100,1708846244063,-8901.53,0.00020273,2]
[315117101,1708846244073,-500.0,0.00020273,2]
[315117102,1708846244082,-1253.96,0.00020273,2]
[315117103,1708846244092,-500.0,0.00020273,2]
[315117104,1708846244102,-500.0,0.00020273,2]
[315117105,1708846244111,-500.0,0.00020273,2]
[315117106,1708846244121,-4526.14,0.00020273,2]
[315117107,1708846244131,-572.47,0.00020273,2]
[315117108,1708846244141,-616.67,0.00020273,2]
[315117109,1708846244162,-500.0,0.00020273,2]
[315117110,1708846244172,-1915.02,0.00020273,2]
[315117111,1708846244182,-507.85189415,0.00020273,2]
[315117112,1708846244191,-2739.02,0.00020273,2]
[315117113,1708846244202,-300.0,0.00020315,2]
[315117114,1708846244217,-153.0,0.00020356,2]
[315117115,1708846244226,-199.0619364,0.00020356,2]
[315117116,1708846244236,-200.0,0.000204,2]
[315117117,1708846244246,-153.0,0.00020438,2]
[315117118,1708846244257,-200.5294442,0.00020438,2]
[315117119,1708846244266,-200.5569553,0.00020438,2]
[315117120,1708846244275,-2827.83867666,0.00020466,2]
[315117121,1708846244286,-300.0,0.00020513,2]
[315117122,1708846244296,-153.0,0.00020521,2]
[315117123,1708846244306,-340.90772496,0.00020521,2]
[315117124,1708846244316,-166.666666,0.00020524,2]
[315117125,1708846244327,-500.0,0.00020547,2]
[315117126,1708846244336,-500.0,0.00020547,2]
[315117127,1708846244345,-545.61,0.00020547,2]
[315117128,1708846244355,-500.0,0.00020547,2]
[315117129,1708846244365,-1098.75,0.00020547,2]
[315117130,1708846244376,-500.0,0.00020547,2]
[315117131,1708846244385,-708.0,0.00020547,2]
[315117132,1708846244395,-500.0,0.00020547,2]
[315117133,1708846244405,-500.0,0.00020547,2]
[315117134,1708846244417,-500.0,0.00020547,2]
[315117135,1708846244428,-500.0,0.00020547,2]
[315117136,1708846244439,-1480.89,0.00020547,2]
[315117137,1708846244449,-701.31,0.00020547,2]
[315117138,1708846244459,-500.0,0.00020547,2]
[315117139,1708846244468,-1392.61,0.00020547,2]
[315117140,1708846244478,-775.55,0.00020547,2]
[315117141,1708846244487,-812.22,0.00020547,2]
[315117142,1708846244496,-4151.71,0.00020547,2]
[315117143,1708846244506,-500.0,0.00020547,2]
[315117144,1708846244515,-740.32,0.00020547,2]
[315117145,1708846244524,-1036.71,0.00020547,2]
[315117146,1708846244533,-836.24,0.00020547,2]
[315117147,1708846244543,-827.85918789,0.00020547,2]
[315117161,1708846246178,-500.0,0.00019178,2]
[315117162,1708846246188,-501.12415207,0.00019178,2]
[315117163,1708846246199,-3113.78,0.00019178,2]
[315117164,1708846246213,-500.0,0.00019452,2]
[315117165,1708846246223,-3113.78,0.00019452,2]
[315117166,1708846246233,-500.0,0.00019726,2]
[315117167,1708846246242,-3113.78,0.00019726,2]
[315117168,1708846246253,-3113.78,0.0002,2]
[315117169,1708846246262,-110.81081211,0.00020547,2]
[315117170,1708846246272,-912.87,0.00020547,2]
[315117171,1708846246281,-500.0,0.00020547,2]
[315117172,1708846246294,-916.25,0.00020547,2]
[315117173,1708846246304,-1262.09,0.00020547,2]
[315117174,1708846246314,-1459.21,0.00020547,2]
[315117175,1708846246323,-6663.35,0.00020547,2]
[315117176,1708846246332,-8901.53,0.00020547,2]
[315117177,1708846246342,-1253.96,0.00020547,2]
[315117178,1708846246351,-500.0,0.00020547,2]
[315117179,1708846246360,-500.0,0.00020547,2]
[315117180,1708846246370,-500.0,0.00020547,2]
[315117181,1708846246380,-4526.14,0.00020547,2]
[315117182,1708846246389,-572.47,0.00020547,2]
[315117183,1708846246400,-616.67,0.00020547,2]
[315117184,1708846246409,-500.0,0.00020547,2]
[315117185,1708846246418,-1915.02,0.00020547,2]
[315117186,1708846246427,-2739.02,0.00020547,2]
[315117187,1708846246436,-2715.80139985,0.0002062,2]
[315117188,1708846246445,-500.0,0.0002062,2]
[315117189,1708846246455,-650.55929983,0.0002062,2]
[315117190,1708846246464,-500.0,0.0002062,2]
[315117191,1708846246474,-500.0,0.0002062,2]
[315117192,1708846246483,-500.0,0.0002062,2]
[315117193,1708846246492,-500.0,0.0002062,2]
[315117194,1708846246501,-500.0,0.0002062,2]
[315117195,1708846246511,-500.0,0.0002062,2]
[315117196,1708846246520,-500.0,0.0002062,2]
[315117197,1708846246529,-500.0,0.0002062,2]
[315117198,1708846246538,-509.71025807,0.0002062,2]
[315117199,1708846246547,-500.0,0.0002062,2]
[315117200,1708846246556,-500.0,0.0002062,2]
[315117201,1708846246565,-500.0,0.0002062,2]
[315117202,1708846246574,-500.0,0.0002062,2]
[315117203,1708846246583,-500.0,0.0002062,2]
[315117204,1708846246593,-500.0,0.0002062,2]
[315117205,1708846246602,-500.0,0.0002062,2]
[315117206,1708846246611,-500.0,0.0002062,2]
[315117207,1708846246620,-500.0,0.0002062,2]
[315117208,1708846246631,-500.0,0.0002062,2]
[315117209,1708846246641,-500.0,0.0002062,2]
[315117210,1708846246650,-500.0,0.0002062,2]
[315117211,1708846246660,-500.0,0.0002062,2]
[315117212,1708846246669,-500.0,0.0002062,2]
[315117213,1708846246678,-500.0,0.0002062,2]
[315117214,1708846246687,-500.0,0.0002062,2]
[315117215,1708846246696,-173.98106559,0.0002062,2]
[315117216,1708846246705,-490.82458843,0.0002062,2]
[315117217,1708846246714,-500.0,0.0002062,2]
[315117218,1708846246723,-500.0,0.0002062,2]
[315117219,1708846246732,-32235.11874678,0.00020621,2]
[315117220,1708846246742,-8017.1875,0.00020621,2]
[315117221,1708846246751,-37091.90625,0.00020621,2]
[315117222,1708846246760,-2261.00929688,0.00020621,2]
[315117223,1708846246770,-5000.0,0.00020621,2]
[315117224,1708846246779,-5000.0,0.00020621,2]
[315117225,1708846246788,-50000.0,0.00020621,2]
[315117226,1708846246798,-35626.14702841,0.00020621,2]
[315117227,1708846246814,-825.0980658,0.00020621,2]
[315117228,1708846334027,-17086.48338101,0.0003,120]
[315117239,1708847170763,243.9253332,0.00017858,2]
[315117241,1708847240637,385.0,0.00015,2]
[315117242,1708847274679,171.70815973,0.00017769,2]
[315117258,1708847433920,-154.95351395,0.00018145,2]
[315117260,1708847433930,-154.95351395,0.00018173,2]
[315117262,1708847433939,-1862.38592717,0.00018174,2]
[315117264,1708847433948,-250.0,0.00018177,2]
[315117266,1708847433957,-1037.50463177,0.000189,2]
[315117268,1708847433966,-1840.8250915,0.0001916,2]
[315117386,1708847438380,-1136.29327134,0.0001916,2]
[315117390,1708847438408,-95024.01043926,0.0001916,2]
[315117391,1708847438417,-500.0,0.00019178,2]
[315117392,1708847438426,-500.0,0.00019178,2]
[315117393,1708847438435,-500.0,0.00019178,2]
[315117394,1708847438444,-543.34,0.00019178,2]
[315117395,1708847438454,-354.33392087,0.00019178,2]
[315117396,1708847438463,-500.0,0.00019178,2]
[315117397,1708847438472,-500.0,0.00019178,2]
[315117398,1708847438481,-709.03,0.00019178,2]
[315117399,1708847438490,-500.0,0.00019178,2]
[315117400,1708847438500,-500.0,0.00019178,2]
[315117401,1708847438509,-500.5211628,0.00019178,2]
[315117402,1708847438518,-500.60959108,0.00019178,2]
[315117403,1708847438527,-500.0,0.00019178,2]
[315117404,1708847438536,-1001.44015609,0.00019178,2]
[315117405,1708847438546,-500.0,0.00019178,2]
[315117406,1708847438558,-500.0,0.00019178,2]
[315117407,1708847438568,-500.0,0.00019178,2]
[315117408,1708847438577,-500.0,0.00019178,2]
[315117409,1708847438586,-500.0,0.00019178,2]
[315117410,1708847438596,-500.0,0.00019178,2]
[315117411,1708847438605,-500.0,0.00019178,2]
[315117412,1708847438614,-500.0,0.00019178,2]
[315117413,1708847438625,-500.0,0.00019178,2]
[315117414,1708847438633,-500.0,0.00019178,2]
[315117415,1708847438642,-500.0,0.00019178,2]
[315117416,1708847438652,-500.0,0.00019178,2]
[315117417,1708847438661,-500.0,0.00019178,2]
[315117418,1708847438670,-500.0,0.00019178,2]
[315117419,1708847438679,-303.2262008,0.00019178,2]
[315117420,1708847438687,-1124.41,0.00019178,2]
[315117421,1708847438696,-500.0,0.00019178,2]
[315117422,1708847438706,-500.0,0.00019178,2]
[315117423,1708847438715,-500.0,0.00019178,2]
[315117424,1708847438724,-500.0,0.00019178,2]
[315117425,1708847438733,-500.0,0.00019178,2]
[315117426,1708847438743,-500.0,0.00019178,2]
[315117427,1708847438753,-500.0,0.00019178,2]
[315117428,1708847438762,-500.0,0.00019178,2]
[315117429,1708847438773,-500.0,0.00019178,2]
[315117430,1708847438782,-1000.0,0.00019178,2]
[315117431,1708847438790,-404.21681105,0.00019178,2]
[315117432,1708847438800,-500.0,0.00019178,2]
[315117433,1708847438809,-442.99707418,0.00019178,2]
[315117468,1708847443403,-57.00292582,0.00019178,2]
[315117470,1708847443413,-500.0,0.00019178,2]
[315117473,1708847443422,-500.0,0.00019178,2]
[315117475,1708847443432,-500.0,0.00019178,2]
[315117477,1708847443441,-500.0,0.00019178,2]
[315117479,1708847443451,-238.47583384,0.00019178,2]
[315117480,1708847443461,-500.0,0.00019178,2]
[315117482,1708847443470,-241.65,0.00019178,2]
[315117485,1708847443479,-500.0,0.00019178,2]
[315117487,1708847443489,-500.0,0.00019178,2]
[315117488,1708847443498,-542.60392477,0.00019178,2]
[315117490,1708847443507,-500.0,0.00019178,2]
[315117492,1708847443517,-330.8,0.00019178,2]
[315117494,1708847443526,-500.0,0.00019178,2]
[315117496,1708847443535,-500.0,0.00019178,2]
[315117498,1708847443545,-567.1,0.00019178,2]
[315117500,1708847443558,-723.93,0.00019178,2]
[315117502,1708847443567,-723.93,0.00019178,2]
[315117522,1708847443734,-723.93,0.00019178,2]
[315117524,1708847443745,-723.93,0.00019178,2]
[315117526,1708847443754,-500.0,0.00019178,2]
[315117528,1708847443763,-500.0,0.00019178,2]
[315117530,1708847443773,-500.0,0.00019178,2]
[315117532,1708847443782,-500.0,0.00019178,2]
[315117534,1708847443791,-1465.86,0.00019178,2]
[315117536,1708847443801,-295.01720244,0.00019178,2]
[315117538,1708847443810,-500.0,0.00019178,2]
[315117540,1708847443819,-694.52,0.00019178,2]
[315117542,1708847443828,-500.0,0.00019178,2]
[315117544,1708847443838,-500.0,0.00019178,2]
[315117546,1708847443847,-500.0,0.00019178,2]
[315117548,1708847443856,-3605.26,0.00019178,2]
[315117550,1708847443865,-1330.71,0.00019178,2]
[315117552,1708847443875,-892.78,0.00019178,2]
[315117554,1708847443884,-197.01034508,0.00019178,2]
[315117556,1708847443895,-500.0,0.00019178,2]
[315117558,1708847443904,-1012.92,0.00019178,2]
[315117560,1708847443914,-787.55,0.00019178,2]
[315117562,1708847443925,-500.0,0.00019178,2]
[315117564,1708847443933,-190.5502052,0.00019178,2]
[315117566,1708847443942,-500.0,0.00019178,2]
[315117567,1708847443951,-500.0,0.00019178,2]
[315117569,1708847443960,-500.0,0.00019178,2]
[315117570,1708847443970,-332.52172932,0.00019178,2]
[315117571,1708847443979,-500.0,0.00019178,2]
[315117573,1708847443988,-500.0,0.00019178,2]
[315117574,1708847443998,-775.44,0.00019178,2]
[315117576,1708847444007,-319.70759572,0.00019178,2]
[315117578,1708847444016,-870.81,0.00019178,2]
[315117579,1708847444025,-500.0,0.00019178,2]
[315117580,1708847444036,-1211.98,0.00019178,2]
[315117581,1708847444045,-456.04,0.00019178,2]
[315117582,1708847444055,-967.99,0.00019178,2]
[315117583,1708847444064,-500.0,0.00019178,2]
[315117584,1708847444073,-500.0,0.00019178,2]
[315117585,1708847444083,-1462.5,0.00019178,2]
[315117586,1708847444092,-942.85,0.00019178,2]
[315117587,1708847444101,-500.0,0.00019178,2]
[315117588,1708847444111,-500.0,0.00019178,2]
[315117589,1708847444120,-500.0,0.00019178,2]
[315117590,1708847444131,-500.0,0.00019178,2]
[315117591,1708847444141,-500.0,0.00019178,2]
[315117592,1708847444150,-500.0,0.00019178,2]
[315117593,1708847444158,-500.0,0.00019178,2]
[315117594,1708847444168,-500.0,0.00019178,2]
[315117595,1708847444177,-500.0,0.00019178,2]
[315117596,1708847444186,-921.5,0.00019178,2]
[315117597,1708847444197,-500.0,0.00019178,2]
[315117598,1708847444207,-500.0,0.00019178,2]
[315117599,1708847444216,-1179.39,0.00019178,2]
[315117600,1708847444225,-500.0,0.00019178,2]
[315117601,1708847444234,-500.0,0.00019178,2]
[315117602,1708847444243,-500.0,0.00019178,2]
[315117603,1708847444252,-500.0,0.00019178,2]
[315117604,1708847444261,-500.0,0.00019178,2]
[315117605,1708847444270,-8652.11,0.00019178,2]
[315117606,1708847444279,-6910.92,0.00019178,2]
[315117607,1708847444288,-500.0,0.00019178,2]
[315117608,1708847444297,-500.0,0.00019178,2]
[315117609,1708847444307,-500.0,0.00019178,2]
[315117610,1708847444317,-500.0,0.00019178,2]
[315117611,1708847444326,-500.0,0.00019178,2]
[315117612,1708847444335,-500.0,0.00019178,2]
[315117613,1708847444344,-500.0,0.00019178,2]
[315117614,1708847444354,-231.23191091,0.00019178,2]
[315117615,1708847444364,-500.0,0.00019178,2]
[315117616,1708847444374,-500.0,0.00019178,2]
[315117617,1708847444384,-500.0,0.00019178,2]
[315117618,1708847444395,-500.0,0.00019178,2]
[315117619,1708847444404,-500.0,0.00019178,2]
[315117620,1708847444413,-375.62660645,0.00019178,2]
[315117621,1708847444422,-500.0,0.00019178,2]
[315117622,1708847444431,-500.0,0.00019178,2]
[315117623,1708847444442,-500.0,0.00019178,2]
[315117624,1708847444452,-500.0,0.00019178,2]
[315117625,1708847444462,-4284.38,0.00019178,2]
[315117626,1708847444472,-500.0,0.00019178,2]
[315117627,1708847444481,-500.0,0.00019178,2]
[315117628,1708847444490,-500.0,0.00019178,2]
[315117629,1708847444500,-412.36668512,0.00019178,2]
[315117639,1708847446360,-103.56331488,0.00019178,2]
[315117640,1708847446369,-231.54193599,0.00019178,2]
[315117641,1708847446416,-302.99806401,0.00019178,2]
[315117642,1708847446425,-500.0,0.00019178,2]
[315117643,1708847446433,-500.0,0.00019178,2]
[315117644,1708847446442,-500.0,0.00019178,2]
[315117645,1708847446451,-1749.05,0.00019178,2]
[315117646,1708847446460,-472.66263299,0.00019178,2]
[315117647,1708847446471,-27.33736701,0.00019178,2]
[315117648,1708847446480,-500.0,0.00019178,2]
[315117649,1708847446489,-500.0,0.00019178,2]
[315117650,1708847446498,-708.06,0.00019178,2]
[315117651,1708847446506,-554.18861888,0.00019178,2]
[315117652,1708847446515,-500.0,0.00019178,2]
[315117653,1708847446524,-626.98,0.00019178,2]
[315117654,1708847446533,-586.82,0.00019178,2]
[315117655,1708847446541,-500.0,0.00019178,2]
[315117656,1708847446551,-517.68,0.00019178,2]
[315117657,1708847446561,-2855.65,0.00019178,2]
[315117658,1708847446571,-181.735317,0.00019178,2]
[315117659,1708847446580,-166.666666,0.00019178,2]
[315117660,1708847446588,-161.435405,0.00019178,2]
[315117661,1708847446598,-500.0,0.00019451,2]
[315117662,1708847446607,-377.32941498,0.00019451,2]
[315117663,1708847446616,-500.0,0.00019451,2]
[315117664,1708847446625,-723.93,0.00019451,2]
[315117665,1708847446635,-723.93,0.00019451,2]
[315117666,1708847446645,-500.0,0.00019452,2]
[315117667,1708847446653,-709.03,0.00019452,2]
[315117668,1708847446663,-500.0,0.00019452,2]
[315117669,1708847446672,-500.0,0.00019452,2]
[315117670,1708847446681,-299.44952129,0.00019452,2]
[315117671,1708847446690,-500.0,0.00019452,2]
[315117672,1708847446700,-500.0,0.00019452,2]
[315117673,1708847446710,-500.0,0.00019452,2]
[315117674,1708847446719,-500.0,0.00019452,2]
[315117675,1708847446728,-1124.41,0.00019452,2]
[315117676,1708847446738,-500.0,0.00019452,2]
[315117677,1708847446747,-182.70269189,0.00019452,2]
[315117678,1708847446756,-500.0,0.00019452,2]
[315117679,1708847446765,-500.0,0.00019452,2]
[315117680,1708847446774,-500.0,0.00019452,2]
[315117681,1708847446783,-525.77,0.00019452,2]
[315117682,1708847446792,-485.67,0.00019452,2]
[315117683,1708847446801,-500.0,0.00019452,2]
[315117684,1708847446810,-533.40617444,0.00019452,2]
[315117685,1708847446820,-567.1,0.00019452,2]
[315117686,1708847446829,-500.0,0.00019452,2]
[315117687,1708847446839,-500.0,0.00019452,2]
[315117688,1708847446848,-1465.86,0.00019452,2]
[315117689,1708847446857,-694.52,0.00019452,2]
[315117690,1708847446866,-500.0,0.00019452,2]
[315117691,1708847446875,-500.0,0.00019452,2]
[315117692,1708847446884,-3605.26,0.00019452,2]
[315117693,1708847446894,-1330.71,0.00019452,2]
[315117694,1708847446904,-892.78,0.00019452,2]
[315117695,1708847446913,-1012.92,0.00019452,2]
[315117696,1708847446922,-787.55,0.00019452,2]
[315117697,1708847446931,-500.0,0.00019452,2]
[315117698,1708847446940,-775.44,0.00019452,2]
[315117699,1708847446949,-870.81,0.00019452,2]
[315117700,1708847446958,-500.0,0.00019452,2]
[315117701,1708847446967,-1211.98,0.00019452,2]
[315117702,1708847446976,-967.99,0.00019452,2]
[315117703,1708847446985,-500.0,0.00019452,2]
[315117704,1708847446994,-1462.5,0.00019452,2]
[315117705,1708847447003,-942.85,0.00019452,2]
[315117706,1708847447013,-500.0,0.00019452,2]
[315117707,1708847447022,-500.0,0.00019452,2]
[315117708,1708847447031,-921.5,0.00019452,2]
[315117709,1708847447040,-500.0,0.00019452,2]
[315117710,1708847447049,-1179.39,0.00019452,2]
[315117711,1708847447058,-500.0,0.00019452,2]
[315117712,1708847447067,-500.0,0.00019452,2]
[315117713,1708847447076,-500.0,0.00019452,2]
[315117714,1708847447085,-8652.11,0.00019452,2]
[315117715,1708847447094,-6910.92,0.00019452,2]
[315117716,1708847447103,-525.27752141,0.00019452,2]
[315117717,1708847447112,-500.0,0.00019452,2]
[315117718,1708847447121,-381.16737767,0.00019452,2]
[315117719,1708847447130,-500.0,0.00019452,2]
[315117720,1708847447139,-500.0,0.00019452,2]
[315117721,1708847447148,-383.62336049,0.00019452,2]
[315117722,1708847447157,-500.0,0.00019452,2]
[315117723,1708847447166,-500.0,0.00019452,2]
[315117724,1708847447175,-500.0,0.00019452,2]
[315117725,1708847447184,-4284.38,0.00019452,2]
[315117726,1708847447193,-500.0,0.00019452,2]
[315117727,1708847447203,-500.0,0.00019452,2]
[315117728,1708847447212,-500.0,0.00019452,2]
[315117729,1708847447221,-335.10525087,0.00019452,2]
[315117730,1708847447230,-500.0,0.00019452,2]
[315117731,1708847447239,-165.48391302,0.00019452,2]
[315117732,1708847447248,-1749.05,0.00019452,2]
[315117733,1708847447257,-500.0,0.00019452,2]
[315117734,1708847447266,-500.0,0.00019452,2]
[315117735,1708847447275,-708.06,0.00019452,2]
[315117736,1708847447285,-500.0,0.00019452,2]
[315117737,1708847447294,-626.98,0.00019452,2]
[315117738,1708847447302,-586.82,0.00019452,2]
[315117739,1708847447312,-2855.65,0.00019452,2]
[315117740,1708847447320,-1156.26354395,0.00019463,2]
[315117741,1708847447330,-557.6391296,0.00019473,2]
[315117742,1708847447339,-13597.79795543,0.00019473,2]
[315117743,1708847447348,-235.48397618,0.00019475,2]
[315117744,1708847447357,-557.6391296,0.00019476,2]
[315117745,1708847447367,-13597.79795543,0.00019481,2]
[315117746,1708847447376,-1156.26354395,0.00019484,2]
[315117747,1708847447385,-235.48397618,0.00019485,2]
[315117748,1708847447394,-235.48397618,0.00019487,2]
[315117749,1708847447404,-557.6391296,0.00019495,2]
[315117750,1708847447413,-1156.26354395,0.00019498,2]
[315117751,1708847447422,-13597.79795543,0.000195,2]
[315117752,1708847447432,-723.93,0.00019526,2]
[315117753,1708847447441,-723.93,0.00019526,2]
[315117754,1708847447450,-723.93,0.00019526,2]
[315117755,1708847447459,-723.93,0.00019526,2]
[315117756,1708847447468,-723.93,0.00019526,2]
[315117757,1708847447478,-723.93,0.00019526,2]
[315117758,1708847447486,-723.93,0.00019526,2]
[315117759,1708847447496,-177.38343121,0.00019626,2]
[315117760,1708847447504,-166.666666,0.00019627,2]
[315117761,1708847447514,-943.1210672,0.0001969,2]
[315117762,1708847447525,-177.64580656,0.000197,2]
[315117763,1708847447535,-177.64580656,0.000197,2]
[315117764,1708847447544,-177.64580656,0.000197,2]
[315117765,1708847447556,-420.67513283,0.000197,2]
[315117766,1708847447565,-420.67513283,0.000197,2]
[315117767,1708847447574,-420.67513283,0.000197,2]
[315117768,1708847447583,-872.26898927,0.000197,2]
[315117769,1708847447593,-872.26898927,0.000197,2]
[315117770,1708847447602,-872.26898927,0.000197,2]
[315117771,1708847447611,-10257.98793126,0.000197,2]
[315117772,1708847447620,-10257.98793126,0.000197,2]
[315117773,1708847447631,-10257.98793126,0.000197,2]
[315117774,1708847447640,-723.93,0.00019725,2]
[315117775,1708847447650,-723.93,0.00019725,2]
[315117776,1708847447659,-500.0,0.00019726,2]
[315117777,1708847447667,-709.03,0.00019726,2]